Cogmind - Beta 9.4 @@@ ROGUE MODE // 2020.01.14 @ 15:10:40 // Winter2019/RPGLIKE Player: Hermelin Result: Destroyed by G-47 Trooper with Particle Gun Performance ------------- Evolutions (2) 1000 Regions Visited (5) 1000 Robots Destroyed (33) 165 Value Destroyed (834) 834 Prototype IDs (23) 460 Alien Tech Used (0) 0 Bonus (300) 300 TOTAL SCORE: 3759 Bonus ------- Aligned with FarCom 300 Cogmind --------- Core Integrity 0/600 Matter 290/300 Energy 385/385 System Corruption 0% Temperature Cool (259) Movement Flying (34) Location -8/Materials Parts ------- > --- POWER (2) -------- Light Ion Engine Light Nuclear Core > --- PROPULSION (3) --- VTOL Module VTOL Module VTOL Module > --- UTILITY (4) ------ Medium Battery Improved Sensor Array Advanced Signal Interpreter Hacking Suite > --- WEAPON (2) ------- Medium Laser Rocket Launcher > --- INVENTORY (3) ---- Datajack Field Lobotomy Kit Axe Peak State ------------ > --- POWER ------------ Light Nuclear Core > --- PROPULSION ------- VTOL Module VTOL Module VTOL Module > --- UTILITY ---------- Medium Battery Improved Sensor Array Advanced Signal Interpreter Hacking Suite > --- WEAPON ----------- Medium Laser Field Lobotomy Kit > --- INVENTORY -------- Rocket Launcher Datajack [Rating: 29] Favorites ----------- Power Ion Engine Engine Ion Engine Power Core Light Nuclear Core Propulsion Light Treads Treads Light Treads Flight Unit VTOL Module Utility Improved Sensor Array Device Improved Sensor Array Storage Medium Battery Processor Seismic Analyzer Hackware Hacking Suite Weapon Medium Laser Energy Gun Medium Laser Energy Cannon Beam Cannon Launcher Rocket Launcher Special Weapon Field Lobotomy Kit Special Melee Weapon Datajack Build | -11 -10 -10 -10 -9 -8 ------- Run | Scr Mat Min Exi Min Mat Slots Evolved 7 | 3 1 . 2 . 1 Power 1 | . . . 1 . . Propulsion 2 | 1 . . 1 . . Utility 3 | 1 1 . . . 1 Weapon 1 | 1 . . . . . Parts Attached 29 | 6 11 2 3 2 5 Power 3 | 1 . 1 . . 1 Engine 2 | 1 . . . . 1 Core 1 | . . 1 . . . Reactor . | . . . . . . Propulsion 6 | 2 3 . 1 . . Treads 2 | 2 . . . . . Leg . | . . . . . . Wheel . | . . . . . . Hover . | . . . . . . Flight 4 | . 3 . 1 . . Utility 8 | 1 4 . 1 . 2 Device 1 | . 1 . . . . Storage 3 | . 2 . . . 1 Processor 3 | 1 . . 1 . 1 Hackware 1 | . 1 . . . . Protection . | . . . . . . Artifact . | . . . . . . Weapon 12 | 2 4 1 1 2 2 Energy Gun 6 | 2 2 1 . 1 . Energy Cannon 1 | . 1 . . . . Ballistic Gun . | . . . . . . Ballistic Cannon . | . . . . . . Launcher 2 | . . . . 1 1 Special Weapon 1 | . . . . . 1 Impact Weapon . | . . . . . . Slashing Weapon . | . . . . . . Piercing Weapon . | . . . . . . Special Melee Weapon 2 | . 1 . 1 . . Unidentified Prototypes . | . . . . . . Parts Lost . | . . . . . . Power . | . . . . . . Propulsion . | . . . . . . Utility . | . . . . . . Weapon . | . . . . . . Highest Loss Streak . | . . . . . . Average Slot Usage (%) 95 | . 95 100 94 90 94 Engine 7 | . 13 2 . . 3 Core 5 | . . 9 10 10 9 Flight 26 | . 25 25 27 30 27 Device 11 | . 12 12 10 10 9 Storage 9 | . 13 12 . . 9 Processor 4 | . . . 10 10 9 Hackware 5 | . . 12 10 10 9 Energy Gun 11 | . 12 12 10 10 9 Launcher 2 | . . . . 7 9 Special Melee Weapon 9 | . 12 12 10 2 . Naked Turns . | . . . . . . Heaviest Build 17 | 9 14 10 10 12 17 Greatest Support 40 | 40 40 10 15 15 20 Greatest Overweight (x) 1 | . 1 . . . . Average Overweight (x) . | . . . . . . Largest Inventory Capacity 3 | 2 2 2 3 3 3 Average Capacity 2 | 1 2 2 2 3 3 Most Carried 3 | 2 2 2 3 3 3 Average Carried 1 | 1 1 2 2 2 2 Final Capacity 3 | 2 2 2 3 3 3 Final Carried 3 | 2 2 2 2 3 3 Class Distribution -------------------- 94% | Mutant 5% | Scout Dominant Class ---------------- Mutant | -10/Materials Mutant | -10/Mines Mutant | -10/Exiles Scout | -9/Mines Scout | -8/Materials Resources | -11 -10 -10 -10 -9 -8 ----------- Run | Scr Mat Min Exi Min Mat Matter Collected 480 | 260 110 20 30 20 40 Remotely . | . . . . . . Salvage Created 969 | . 488 159 . 181 141 Parts 73 | . 40 18 . 10 5 Haulers Intercepted 2 | . 2 . . . . Recyclers Shooed 2 | . . 2 . . . Parts Field Recycled . | . . . . . . Retrieved Matter . | . . . . . . Parts Self-Destructed . | . . . . . . Prevented . | . . . . . . Kills | -11 -10 -10 -10 -9 -8 ------- Run | Scr Mat Min Exi Min Mat Combat Hostiles Destroyed 26 | 3 12 4 . 5 2 Guns 26 | 3 12 4 . 5 2 Classes Destroyed 8 | 1 5 2 . . . Hauler 2 | . 2 . . . . Recycler 1 | . . 1 . . . Operator 1 | . 1 . . . . Watcher 3 | . 3 . . . . Swarmer 5 | . 5 . . . . Grunt 15 | . 7 2 . 5 1 Sentry 3 | . . 2 . . 1 Assembled 3 | 3 . . . . . Best Kill Streak 3 | 1 3 2 . 2 1 Combat Bots Only 3 | 1 3 2 . 2 1 Max Kills in Single Turn 1 | 1 1 1 . 1 1 Gunslinging . | . . . . . . Exploded . | . . . . . . Melee . | . . . . . . Uniques/NPCs Destroyed . | . . . . . . Combat | -11 -10 -10 -10 -9 -8 -------- Run | Scr Mat Min Exi Min Mat Damage Taken 1732 | 97 435 662 . 299 239 Core 1437 | 80 349 559 . 247 202 Absorbed by Shields . | . . . . . . Redirected to Core 991 | 62 270 353 . 176 130 Core Remaining (%) 62 | 93 . . . 32 . Volleys Fired 183 | 9 90 28 . 34 22 Largest 2 | 2 1 1 . 1 1 Hottest 90 | 90 40 40 . 50 50 Shots Fired 192 | 18 90 28 . 34 22 Gun 192 | 18 90 28 . 34 22 Cannon . | . . . . . . Launcher . | . . . . . . Special . | . . . . . . Kinetic . | . . . . . . Thermal 183 | 9 90 28 . 34 22 Explosive . | . . . . . . Electromagnetic 9 | 9 . . . . . Robot Hit Streak 12 | 5 12 10 . 8 10 Robot Miss Streak 4 | 2 2 2 . 4 1 Penetration Max . | . . . . . . Secondary Targets . | . . . . . . Shots Hit Robots 138 | 9 65 21 . 26 17 Core Hits 66 | 5 28 14 . 12 7 Critical Hits . | . . . . . . Critical Kills . | . . . . . . Critical Parts Destroyed . | . . . . . . Melee Attacks 1 | . 1 . . . . Impact . | . . . . . . Slashing . | . . . . . . Piercing . | . . . . . . Sneak Attacks . | . . . . . . Combat Hostiles . | . . . . . . Follow-up Attacks . | . . . . . . Damage Inflicted 1638 | 93 738 239 . 343 225 Guns 1638 | 93 738 239 . 343 225 Cannons . | . . . . . . Explosions . | . . . . . . Melee . | . . . . . . Ramming . | . . . . . . Kinetic . | . . . . . . Thermal 1583 | 38 738 239 . 343 225 Explosive . | . . . . . . Electromagnetic 55 | 55 . . . . . Impact . | . . . . . . Slashing . | . . . . . . Piercing . | . . . . . . Highest Corruption . | . . . . . . Average Corruption . | . . . . . . Corruption Purged . | . . . . . . Overload Shots . | . . . . . . Overflow Damage . | . . . . . . Projectiles . | . . . . . . Explosions . | . . . . . . Melee . | . . . . . . Knockbacks . | . . . . . . Impact . | . . . . . . Kinetic . | . . . . . . Secondary . | . . . . . . Self-Inflicted Damage . | . . . . . . Shots . | . . . . . . Rammed . | . . . . . . Targets Rammed . | . . . . . . Kicked . | . . . . . . Crushed . | . . . . . . Highest Temperature 396 | 180 88 115 . 396 250 Average Temperature 73 | 72 24 37 . 169 80 Received Heat Transfer 589 | 20 168 122 . 171 108 Effects 6 | . . . . 6 . Shutdowns 1 | . . . . 1 . Energy Bleed 2 | . . . . 2 . Interference 3 | . . . . 3 . Siege Activations . | . . . . . . Robots Corrupted . | . . . . . . Combat Hostiles . | . . . . . . Parts Fried . | . . . . . . Impact Corruptions . | . . . . . . Robots Melted . | . . . . . . Combat Hostiles . | . . . . . . Parts Melted 8 | . 2 . . 2 4 Heat Transferred 3943 | 111 1675 550 . 941 666 Parts Sabotaged . | . . . . . . Parts Stolen . | . . . . . . Parts Stripped . | . . . . . . Power Chain Reactions . | . . . . . . Missiles Intercepted . | . . . . . . Alert | -11 -10 -10 -10 -9 -8 ------- Run | Scr Mat Min Exi Min Mat Peak Influence 279 | 20 279 189 . 120 155 Average Influence 23 | 3 108 145 . 59 107 Maximum Alert Level 1 | . 1 . . . . Low Security (%) 98 | 100 88 100 . 100 100 Level 1 1 | . 11 . . . . Level 2 . | . . . . . . Level 3 . | . . . . . . Level 4 . | . . . . . . Level 5 . | . . . . . . High Security . | . . . . . . Max Security . | . . . . . . Squads Dispatched 5 | . 3 . . . 2 Investigation 3 | . 2 . . . 1 Extermination . | . . . . . . Reinforcement 2 | . 1 . . . 1 Assault . | . . . . . . Garrison . | . . . . . . Intercept . | . . . . . . Construction Impeded . | . . . . . . Haulers Reinforced . | . . . . . . Stealth | -11 -10 -10 -10 -9 -8 --------- Run | Scr Mat Min Exi Min Mat Distress Signals . | . . . . . . Communications Jammed . | . . . . . . Distress Signals . | . . . . . . Times Spotted 47 | 4 18 11 . 5 9 Peak Tracking Total 5 | 1 3 5 . 3 5 Tactical Retreats 3 | 1 . 1 . . 1 Traps | -11 -10 -10 -10 -9 -8 ------- Run | Scr Mat Min Exi Min Mat Traps Triggered 1 | . 1 . . . . Indirectly . | . . . . . . Trap Hack Attempts . | . . . . . . Triggered . | . . . . . . Disarmed . | . . . . . . Reprogrammed . | . . . . . . Reused . | . . . . . . Traps Extracted . | . . . . . . Installed . | . . . . . . Triggered . | . . . . . . Machines | -11 -10 -10 -10 -9 -8 ---------- Run | Scr Mat Min Exi Min Mat Machines Disabled . | . . . . . . Max in Single Turn . | . . . . . . Machines Sabotaged . | . . . . . . Garrisons Compromised . | . . . . . . Overloaded Fab Kills . | . . . . . . Fab Network Shutdowns . | . . . . . . Hacking | -11 -10 -10 -10 -9 -8 --------- Run | Scr Mat Min Exi Min Mat Machines Accessed 16 | . 9 . 3 . 4 Terminals 10 | . 7 . . . 3 Fabricators . | . . . . . . Repair Stations 1 | . 1 . . . . Recycling Units 1 | . 1 . . . . Scanalyzers 1 | . . . . . 1 Garrison Access . | . . . . . . Total Hacks 77 | . 30 . 32 . 15 Successful 58 | . 17 . 32 . 9 Failed 19 | . 13 . . . 6 Catastrophic 1 | . 1 . . . . Database Lockouts . | . . . . . . Manual 26 | . 20 . 1 . 5 Terminals 36 | . 26 . . . 10 Fabricators . | . . . . . . Repair Stations 2 | . 2 . . . . Recycling Units 2 | . 2 . . . . Scanalyzers 5 | . . . . . 5 Garrison Access . | . . . . . . Terminal Hacks 41 | . 7 . 32 . 2 Record 31 | . . . 31 . . Part Schematic 2 | . 2 . . . . Robot Analysis 1 | . . . . . 1 Branch Access Points 1 | . 1 . . . . Alert Level 1 | . 1 . . . . Unreport Threat 1 | . 1 . . . . Transport Status 1 | . 1 . . . . Recall Investigation 1 | . . . . . 1 Zone Layout 1 | . 1 . . . . EX-Prototype ID Bank 1 | . . . 1 . . Fabricator Hacks . | . . . . . . Repair Station Hacks 2 | . 2 . . . . Scan Component 1 | . 1 . . . . Repair 1 | . 1 . . . . Recycling Unit Hacks . | . . . . . . Scanalyzer 5 | . . . . . 5 Insert Component 3 | . . . . . 3 Analyze 2 | . . . . . 2 Garrison Access Hacks . | . . . . . . Unauthorized Hacks 28 | . 22 . . . 6 Terminals 10 | . 8 . . . 2 Track 1 | . 1 . . . . Assimilate 2 | . 1 . . . 1 Botnet 6 | . 5 . . . 1 Detonate 1 | . 1 . . . . Fabricators . | . . . . . . Repair Stations . | . . . . . . Recycling Units . | . . . . . . Scanalyzers . | . . . . . . Garrison Access . | . . . . . . Data Cores Recovered . | . . . . . . Used . | . . . . . . Hacking Detections 13 | . 9 . . . 4 Full Trace Events 3 | . 1 . . . 2 Feedback Events . | . . . . . . Feedback Blocked . | . . . . . . Robot Schematics Acquired . | . . . . . . Robots Built . | . . . . . . Matter . | . . . . . . Time . | . . . . . . Total Robot Build Rating . | . . . . . . Part Schematics Acquired 4 | . 2 . . . 2 Parts Built . | . . . . . . Matter . | . . . . . . Time . | . . . . . . Total Part Build Rating . | . . . . . . Parts Repaired 1 | . 1 . . . . Time 32 | . 32 . . . . Parts Recycled . | . . . . . . Recycled Matter . | . . . . . . Retrieved Matter . | . . . . . . Retrieved Components . | . . . . . . Parts Scanalyzed 2 | . . . . . 2 Part Schematics Acquired 2 | . . . . . 2 Parts Damaged . | . . . . . . Bothacking | -11 -10 -10 -10 -9 -8 ------------ Run | Scr Mat Min Exi Min Mat Used RIF Installer . | . . . . . . Robots Hacked 1 | . 1 . . . . Non-combat . | . . . . . . Combat 1 | . 1 . . . . Robot Hacks Applied 1 | . 1 . . . . parse_system 1 | . 1 . . . . Relay Couplers Released . | . . . . . . Robots Rewired . | . . . . . . Allies Hacked . | . . . . . . Hacks Repelled . | . . . . . . Allies | -11 -10 -10 -10 -9 -8 -------- Run | Scr Mat Min Exi Min Mat Total Allies 2 | . 1 . . . 1 Largest Group 1 | . 1 . . . 1 Highest-Rated Group 26 | . 10 . . . 26 Highest-Rated Ally 26 | . 10 . . . 26 Total Orders 1 | . . . . . 1 GOTO 1 | . . . . . 1 Ally Attacks . | . . . . . . Total Damage . | . . . . . . Kills . | . . . . . . Allies Corrupted . | . . . . . . Allies Melted . | . . . . . . Intel | -11 -10 -10 -10 -9 -8 ------- Run | Scr Mat Min Exi Min Mat Robot Analysis Total 1 | . . . . . 1 Derelict Logs Recovered 2 | . . 1 . 1 . Drone Launches . | . . . . . . Drone Recoveries . | . . . . . . Exploration | -11 -10 -10 -10 -9 -8 ------------- Run | Scr Mat Min Exi Min Mat Turns Passed 7907 | 6177 822 247 213 251 197 Spaces Moved 4163 | 1617 974 336 580 398 258 Core 2 | 2 . . . . . Treads 1644 | 1615 29 . . . . Legs . | . . . . . . Wheels . | . . . . . . Hover . | . . . . . . Flight 2517 | . 945 336 580 398 258 Fastest Speed 34 | 50 37 37 34 34 34 Average Speed 84 | 159 40 37 35 34 34 Slowest Speed 160 | 160 160 37 37 34 34 Overloaded Moves . | . . . . . . Propulsion Burnouts . | . . . . . . Robots Hopped 22 | . 12 5 . 1 4 Cave-ins Triggered . | . . . . . . Exploration Rate (%) 75 | 98 95 57 93 79 33 Regions Visited 5 Branch Regions 3 Pre-discovered Areas 1 | . . . 1 . . Known Exits Taken 3 | . 1 . 1 1 . Unknown Exits Taken 2 | 1 . 1 . . . Scrap Searched 4 | . . 2 . 2 . Spaces Dug . | . . . . . . Terrain Destroyed . | . . . . . . Melee . | . . . . . . Projectile . | . . . . . . AOE . | . . . . . . Actions | -11 -10 -10 -10 -9 -8 --------- Run | Scr Mat Min Exi Min Mat Total 8317 | 5190 1295 426 588 478 340 Wait 3893 | 3550 201 48 4 34 56 Move 4115 | 1616 950 325 579 395 250 Hop 21 | . 11 5 . 1 4 Pick Up 12 | 5 2 1 1 1 2 Fast Attach 16 | 3 10 1 . 1 1 Attach 6 | 3 . . 2 . 1 Detach 1 | . . . 1 . . Swap 7 | . 1 1 1 1 3 Drop 16 | . 10 3 . 2 1 Fire 183 | 9 90 28 . 34 22 Melee 1 | . 1 . . . . Ram . | . . . . . . Kick . | . . . . . . Crush . | . . . . . . Escape Stasis . | . . . . . . Rewire . | . . . . . . Trap . | . . . . . . Miscellaneous 46 | 4 19 14 . 9 . Route ------- -11/Scrapyard -10/Materials (discovered 5 exits: [*Mat x3] / *Min x2) -10/Mines (discovered 3 exits: [*Mat x2] / *Exi) -10/Exiles (discovered 2 exits: *Min x2) -9/Mines -8/Materials (discovered 1 exit: [*Fac]) History --------- Turn | Location | Event 20 | -11/Scrapyard | Discovered new exit (range 16) 23 | -11/Scrapyard | Upgraded with Propulsion slot (x1) 23 | -11/Scrapyard | Upgraded with Utility slot (x1) 23 | -11/Scrapyard | Upgraded with Weapon slot (x1) 4111 | -11/Scrapyard | Assembled infested the area 6178 | -11/Scrapyard | Entered Materials 6179 | -10/Materials | Build established: Mutant 6392 | -10/Materials | Discovered new exit (range 13) 6413 | -10/Materials | Discovered new exit (range 7) 6556 | -10/Materials | Identified exit to Mines 6708 | -10/Materials | Discovered new exit (range 16) 6813 | -10/Materials | Repaired VTOL Module 6850 | -10/Materials | Discovered new exit (range 15) 6886 | -10/Materials | Reached level 2 6890 | -10/Materials | Upgraded with Utility slot (x1) 7000 | -10/Materials | Entered Mines 7047 | -10/Mines | Discovered new exit (range 5) 7130 | -10/Mines | Discovered new exit (range 6) 7149 | -10/Mines | Assembled infested the area 7154 | -10/Mines | Assisted by a Guerilla fighting off Assembled 7211 | -10/Mines | Core integrity fell below 50% 7246 | -10/Mines | Deemed a non-threat by the Exiles lab entrance 7246 | -10/Mines | Discovered new exit (range 5) 7247 | -10/Mines | Entered Exiles 7253 | -10/Exiles | Discovered new exit (range 15) 7259 | -10/Exiles | Identified exit to Mines 7268 | -10/Exiles | Met 8R-AWN 7273 | -10/Exiles | Met EX-HEX 7285 | -10/Exiles | Met EX-BIN 7319 | -10/Exiles | Reached level 3 7319 | -10/Exiles | Aligned with FarCom system 7319 | -10/Exiles | Given EX-Vault access code 7329 | -10/Exiles | Opened EX-Vault 7332 | -10/Exiles | Upgraded with Power slot (x1) 7332 | -10/Exiles | Upgraded with Propulsion slot (x1) 7333 | -10/Exiles | Found Field Lobotomy Kit 7349 | -10/Exiles | Warned to stay clear of 0b10 Research branches 7390 | -10/Exiles | Met EX-DEC 7397 | -10/Exiles | Visited The Gauntlet 7438 | -10/Exiles | Learned location of Zion (-6) 7456 | -10/Exiles | Discovered exit to Mines (range 14) 7460 | -10/Exiles | Left Exiles lab with Field Lobotomy Kit 7460 | -10/Exiles | Entered Mines 7481 | -9/Mines | Core integrity fell below 20% 7521 | -9/Mines | Received a Rocket Launcher from a helpful Derelict 7674 | -9/Mines | Discovered new exit (range 10) 7711 | -9/Mines | Identified exit to Materials 7711 | -9/Mines | Entered Materials 7712 | -8/Materials | Core integrity fell below 50% 7713 | -8/Materials | Reached level 4 7714 | -8/Materials | Upgraded with Utility slot (x1) 7784 | -8/Materials | Discovered new exit (range 16) 7789 | -8/Materials | Build established: Scout 7885 | -8/Materials | Core integrity fell below 20% 7908 | -8/Materials | Destroyed by G-47 Trooper with Particle Gun Last Messages --------------- An upgrade to the W-16 Scout, Informers double the Scout's sensor range, and have access to even more specific signal interpretation data. They are also capable of jamming weaker sensors within their area of influence, though as unarmed surveillance units rather than front-line combatants, agility is preferred over additional armor to protect their systems from electromagnetic damage. >>Recall(Investigation) Establishing remote squad link... Recalled investigation squad JYYWMHGCFP. 07854_ K-01 Serf collects debris. 07855_ Administrator 3a reveals location of hidden door. 07867_ K-01 Serf collects debris. 07874_ K-01 Serf cleans the Matter Pump. 07878_ K-01 Serf collects debris. 07880_ K-01 Serf cleans the Matter Pump. 07895_ Electrolysis Chamber disabled. 07901_ Particle Gun melted. 07901_ Aluminum Leg melted. 07901_ Lgt. Nuclear Core melted. 07901_ G-47 Trooper destroyed. Map ----- +----------------------------------------------------+ | ??????????# #???????????????????????????????? | | ??????##### """ #???????????????????????????????? | | ####??# # """ #???????????????????????????????? | | !?# # """ #???????????????????????????????? | | ?# # #???????????????????????????????? | | "" # ###+#####??????????????????????????????? | | """ # #??????????????????????????????? | | """ + #??????????????????????????????? | | """ # =[ #??????????????????????????????? | | "" # =[ #??????????????????????????????? | | ?# [ ##?????????????????????????????? | | ?# T#?????????????????????????????? | | ####??# ##?????????????????????????????? | | ??????# ! #?????g?"??????????????????????? | | ??????# #???? ""?????????????????????? | | ??????# """ ### """????????????????????? | | ?????## """ g ?????????????????? | | ?????# """ g ?????????????????? | | ###### ?????????????????? | | ?????????????????? | | ###### g g ! ##############?????????????????? | | ??# ###########o /g??????????????????? | | ??# g#?????????# """ """k#???????#???????????? | | ""???# #?????????# """ """k#######/##??????????? | | ""???# g#???"?????# """ " " # #??????????? | | "????# #???"?????# @% # """ #??????????? | | ???## g##?? ?????#######g### """ [#??????????? | | ##### ###+########## != # """ #??????????? | | gg w # #??????????? | | ##### + """ #??????????? | | #???# g # """ #??????????? | | #???# # # """ #??????????? | | #???####### """ """ """ ## #??????????? | | #?????????# """ """ """ ####+######??????????? | | #?????????# """ """ """ # #??????????????? | | #?????????# + #??????????????? | | #?????????# # *** #??????????????? | | #??#####??# # ** #?????g????????? | | #?? #??# # ** #??????????????? | | ## #####+########+####### #??????????????? | | !# # # ## !#??????????????? | | + # """"" !# ########??????????????? | | # """ # """"" # #?????????????????????? | | ## """ # """"" # #?????????????????????? | | #??""" #" # """ #?????????????????????? | | #??#####T ]**# "T" """ #?????????????????????? | | #??????#" ]**# """ """ #?????????????????????? | | #??????# ]**# #?????????????????????? | | #??????####+################?????????????????????? | | #?????????# #????????????????????????????????????? | +----------------------------------------------------+ Best States ------------- Heat Dissipation 31 Energy Generation 19 Energy Capacity 450 Matter Stores 300 Matter Capacity 450 Sight Range 17 Robot Scan Range 25 Terrain Scan Density 60 Evasion (%) 63 Recoil Reduction 2 Offensive Hacking 15 Item Schematics ----------------- Grenade Launcher | -10/Materials | Hacked Signal Interpreter | -10/Materials | Hacked Imp. VTOL Module | -8/Materials | Scanalyzed Datajack | -8/Materials | Scanalyzed Robot Schematics ------------------ None Fabricated ------------ Nothing Alien Tech Used ----------------- None Achievements -------------- None Challenges ------------ None RPGLIKE | -11 -10 -10 -10 -9 -8 --------- Run | Scr Mat Min Exi Min Mat Levels Raised 3 | . 1 . 1 . 1 XP Earned 8945 | 3000 1735 950 350 1100 1810 XP Spent 7325 | 2925 800 . 2050 . 1550 Upgrades 20 | 11 1 . 3 . 5 Power Slot 1 | . . . 1 . . Propulsion Slot 2 | 1 . . 1 . . Utility Slot 3 | 1 1 . . . 1 Weapon Slot 1 | 1 . . . . . Heat Dissipation 1 | . . . . . 1 Mass Support 1 | . . . . . 1 Inventory Capacity 3 | 2 . . 1 . . Sight Range 1 | . . . . . 1 Sensor Range 6 | 6 . . . . . Hack Attack % 1 | . . . . . 1 Protomatter Created 345 | 23 117 137 . 68 . Integrity Restored 899 | 43 374 278 . 204 . Core 832 | 41 345 242 . 204 . Parts 67 | 2 29 36 . . . Protomatter Decayed 109 | 8 . 101 . . . Game ------ Seed AngularCloakDiverter Manual? 0 Play Time 01:09:00 Cumulative 20.6 hours Start 2020.01.14 @ 13:53:45 End 2020.01.14 @ 15:10:40 Sessions 1 Manual Loads 0 Difficulty Rogue Special Mode Winter2019/RPGLIKE Game No. 11 Rogue 11 Adventurer 0 Explorer 0 Win Type - Total 0 Types 0/0/0/0/0/0/0 Lore% 40 Gallery% 20 Achievement% 32 Wizard Run 0 Options --------- ASCII 0 Keyboard 0 Movement Mouse Keybinds 0 Fullscreen 1 Font 14/SmallcapsGlow Map View 84x54 Tactical HUD 1 Map Filters NONE Filters NONE Steam 1 RUN: 4187dff6-39ce-41e3-8ecc-eaf1b1c9a70c